[Event "VII Totalizator Sportowy 2022"]
[Site "Bydgoszcz"]
[Date "2022.06.30"]
[Round "6.24"]
[White "Kolodziejski, Piotr"]
[Black "Stolarczyk, Adam"]
[Result "1/2-1/2"]
[ECO "B07"]
[WhiteElo "2107"]
[BlackElo "2125"]
[Annotator "NA RC"]
[PlyCount "101"]
[EventDate "2022.06.25"]
[EventType "swiss"]
[EventCountry "POL"]
[SourceTitle "playchess.com"]
[Source "ChessBase"]
[SourceQuality "1"]
[TimeControl "40/5400+30:1800+30"]

1. e4 {[%emt 0:00:03]} d6 {[%emt 0:00:07]} 2. d4 {[%emt 0:00:07]} Nf6 {[%emt 0:00:12]} 3. Nc3 {[%emt 0:00:14]} g6 {[%emt 0:00:12]} 4. Be2 {[%emt 0:00:13]} Bg7 {[%emt 0:01:32]} 5. h4 {[%emt 0:00:19]} h5 {[%emt 0:03:42]} 6. Nf3 {[%emt 0:02:06]} c6 {[%emt 0:01:27]} 7. O-O {[%emt 0:04:35]} O-O {[%emt 0:00:51]} 8. Ng5 {[%emt 0:06:20]} b5 {[%emt 0:04:13]} 9. Bd3 {[%emt 0:09:06]} e5 {[%emt 0:00:45]} 10. Ne2 {[%emt 0:03:54]} a6 {[%emt 0:02:30]} 11. a4 {[%emt 0:06:16]} Bb7 {[%emt 0:02:18]} 12. c3 {[%emt 0:04:02]} Nbd7 {[%emt 0:03:35]} 13. f3 {[%emt 0:00:58]} Qe7 {[%emt 0:11:07]} 14. Bc2 {[%emt 0:08:21]} Nh7 {[%emt 0:10:21]} 15. Bb3 {[%emt 0:06:19]} c5 {[%emt 0:11:35]} 16. axb5 {[%emt 0:04:14]} axb5 {[%emt 0:02:32]} 17. Rxa8 {[%emt 0:00:08]} Bxa8 {[%emt 0:00:08]} 18. d5 {[%emt 0:04:04]} c4 {[%emt 0:04:42]} 19. Bc2 {[%emt 0:00:05]} Bb7 {[%emt 0:01:17]} 20. g4 {[%emt 0:04:22]} Nxg5 {[%emt 0:02:46]} 21. hxg5 {[%emt 0:02:41]} hxg4 {[%emt 0:00:30]} 22. fxg4 {[%emt 0:00:05]} Ra8 {[%emt 0:00:38]} 23. Qe1 {[%emt 0:03:30]} Ra1 {[%emt 0:05:10]} 24. Qf2 {[%emt 0:01:03]} Nc5 {[%emt 0:01:05]} 25. Be3 {[%emt 0:01:32]} Rxf1+ {[%emt 0:01:25]} 26. Kxf1 {[%emt 0:00:36]} Qc7 {[%emt 0:01:08]} 27. Nc1 {[%emt 0:02:43]} Bc8 {[%emt 0:00:40]} 28. Bxc5 {[%emt 0:02:30]} dxc5 {[%emt 0:02:00]} 29. Bd1 {[%emt 0:00:14]} Bf8 {[%emt 0:01:02]} 30. Bf3 {[%emt 0:02:35]} Be7 {[%emt 0:01:23]} 31. Qe3 {[%emt 0:00:10]} Bd7 {[%emt 0:04:37]} 32. Kg2 {[%emt 0:01:15]} Qa5 {[%emt 0:01:46]} 33. Qd2 {[%emt 0:01:00]} Qb6 {[%emt 0:00:30]} 34. Ne2 {[%emt 0:01:01]} Kf8 {[%emt 0:00:58]} 35. Ng1 {[%emt 0:00:51]} Ke8 {[%emt 0:01:34]} 36. Nh3 {[%emt 0:00:34]} Kd8 {[%emt 0:02:20]} 37. Qc1 {[%emt 0:00:50]} Qa6 {[%emt 0:00:48]} 38. Be2 {[%emt 0:00:08]} Qa2 {[%emt 0:00:47]} 39. Kg3 {[%emt 0:01:13]} Kc7 {[%emt 0:00:59]} 40. Ng1 {[%emt 0:00:00]} Qa8 {[%emt 0:00:00]} 41. Nf3 {[%emt 0:02:55]} Qh8 {[%emt 0:03:56]} 42. Qa1 {[%emt 0:01:48]} Kb6 {[%emt 0:00:22]} 43. Qf1 {[%emt 0:05:14]} f6 {[%emt 0:06:59]} 44. Qh3 {[%emt 0:01:58]} Qxh3+ {[%emt 0:00:57]} 45. Kxh3 {[%emt 0:00:05]} Kc7 {[%emt 0:00:16]} 46. gxf6 {[%emt 0:03:01]} Bxf6 {[%emt 0:00:11]} 47. Kg3 {[%emt 0:00:06]} g5 {[%emt 0:02:09]} 48. Nd2 {[%emt 0:00:28]} Kb6 {[%emt 0:00:37]} 49. Bd1 {[%emt 0:00:51]} Kc7 {[%emt 0:01:38]} 50. Be2 {[%emt 0:00:15]} Kb6 {[%emt 0:00:09]} 51. Bd1 {[%emt 0:00:05]} 1/2-1/2

[Event "VII Totalizator Sportowy 2022"]
[Site "Bydgoszcz"]
[Date "2022.06.30"]
[Round "6.25"]
[White "Zaninotto, Franco"]
[Black "Lambrecht, Tomasz"]
[Result "0-1"]
[ECO "B12"]
[WhiteElo "2069"]
[BlackElo "1956"]
[Annotator "NA RC"]
[PlyCount "66"]
[EventDate "2022.06.25"]
[EventType "swiss"]
[EventCountry "POL"]
[SourceTitle "playchess.com"]
[Source "ChessBase"]
[SourceQuality "1"]
[TimeControl "40/5400+30:1800+30"]

1. e4 {[%emt 0:00:03]} c6 {[%emt 0:03:39]} 2. d4 {[%emt 0:00:09]} d5 {[%emt 0:00:04]} 3. e5 {[%emt 0:00:05]} c5 {[%emt 0:00:52]} 4. Nf3 {[%emt 0:00:11]} e6 {[%emt 0:05:37]} 5. c3 {[%emt 0:00:13]} Nc6 {[%emt 0:00:04]} 6. a3 {[%emt 0:01:55]} c4 {[%emt 0:00:29]} 7. Nbd2 {[%emt 0:15:29]} Bd7 {[%emt 0:02:44]} 8. Be2 {[%emt 0:03:09]} Na5 {[%emt 0:04:25]} 9. O-O {[%emt 0:00:56]} Qc7 {[%emt 0:00:48]} 10. a4 {[%emt 0:19:57]} Ne7 {[%emt 0:03:58]} 11. Ng5 {[%emt 0:13:57]} h6 {[%emt 0:01:01]} 12. Nh3 {[%emt 0:00:35]} Nc8 {[%emt 0:00:38]} 13. Nf4 {[%emt 0:09:58]} Nb6 {[%emt 0:08:35]} 14. Nh5 {[%emt 0:00:42]} O-O-O {[%emt 0:07:51]} 15. f4 {[%emt 0:02:33]} g6 {[%emt 0:14:45]} 16. Nf6 {[%emt 0:01:55]} Bc6 {[%emt 0:01:53]} 17. Ng4 {[%emt 0:07:55]} Be7 {[%emt 0:03:30]} 18. Ne3 {[%emt 0:01:23]} Rdg8 {[%emt 0:16:34]} 19. Kh1 {[%emt 0:02:10]} Qd7 {[%emt 0:01:19]} 20. g4 {[%emt 0:05:59]} f5 {[%emt 0:05:49]} 21. gxf5 {[%emt 0:04:42]} gxf5 {[%emt 0:00:18]} 22. Bh5 {[%emt 0:00:12]} Rg7 {[%emt 0:01:23]} 23. Rg1 {[%emt 0:00:34]} Rhg8 {[%emt 0:02:02]} 24. Rxg7 {[%emt 0:00:07]} Rxg7 {[%emt 0:00:01]} 25. Qf1 {[%emt 0:03:34]} Bxa4 {[%emt 0:08:17]} 26. Qh3 {[%emt 0:00:25]} Bd8 {[%emt 0:01:14]} 27. b4 {[%emt 0:02:17]} cxb3 {[%emt 0:01:56]} 28. Ba3 {[%emt 0:00:02]} Be7 {[%emt 0:02:48]} 29. Bc5 {[%emt 0:00:48]} Bxc5 {[%emt 0:00:49]} 30. dxc5 {[%emt 0:00:04]} Nbc4 {[%emt 0:00:09]} 31. Ndxc4 {[%emt 0:03:23]} Nxc4 {[%emt 0:00:17]} 32. Nxc4 {[%emt 0:00:07]} dxc4 {[%emt 0:00:02]} 33. Rd1 {[%emt 0:00:02]} Bc6+ {[%emt 0:00:17]} 0-1

[Event "VII Totalizator Sportowy 2022"]
[Site "Bydgoszcz"]
[Date "2022.07.01"]
[Round "7.1"]
[White "Kucza, Karol"]
[Black "Krasenkow, Michal"]
[Result "1-0"]
[ECO "B06"]
[WhiteElo "2305"]
[BlackElo "2576"]
[Annotator "TA"]
[PlyCount "119"]
[EventDate "2022.06.25"]
[EventType "swiss"]
[EventCountry "POL"]
[SourceTitle "playchess.com"]
[Source "ChessBase"]
[SourceQuality "1"]
[TimeControl "40/5400+30:1800+30"]

{[%evp 13,119,56,59,43,63,20,23,31,26,20,11,19,56,33,36,25,34,39,56,57,51,56,47,49,58,30,21,28,26,27,60,51,58,63,86,56,56,35,48,26,17,0,43,39,41,0,17,0,0,9,6,0,0,0,0,0,39,0,0,0,0,0,0,0,0,0,0,0,0,0,0,0,0,0,0,0,0,0,0,0,0,0,0,0,0,0,0,0,0,0,0,0,221,0,0,0,0,0,0,0,0,0,0,0,29982,29982,29983,29984]} 1. e4 {[%emt 0:00:04]} g6 {[%emt 0:00:09]} 2. d4 {[%emt 0:00:07]} Bg7 {[%emt 0:00:03]} 3. Nc3 {[%emt 0:00:31]} c6 {[%emt 0:00:05]} 4. Nf3 {[%emt 0:05:59]} d6 {[%emt 0:00:17]} 5. a4 {[%emt 0:05:02]} Nf6 {[%emt 0:00:52]} 6. Be2 {[%emt 0:00:07]} Bg4 {[%emt 0:01:50]} 7. O-O {[%emt 0:00:29]} O-O {[%emt 0:00:33]} 8. a5 {[%emt 0:02:14] B08: Pirc Defence: Classical System.} Nbd7 {[%emt 0:00:17]} 9. Be3 {[%emt 0:00:55]} (9. h3 $5 {[%cal Rh3g4]} Bxf3 10. Bxf3 $14) 9... e5 {[%emt 0:02:59]} 10. dxe5 {[%emt 0:08:57] White has an edge.} dxe5 {[%emt 0:00:26]} 11. Nd2 {[%emt 0:01:47]} Bxe2 {[%emt 0:03:22]} 12. Qxe2 {[%emt 0:00:06]} Qe7 {[%emt 0:00:05] [#]} 13. Nb3 $146 {[%emt 0:08:56]} ({Predecessor:} 13. Na4 Rfb8 14. c3 b5 15. axb6 axb6 16. b4 Qe6 17. f3 {½-½ (17) Petrov,M (2406)-Janev,E (2460) Sunny Beach 2005}) 13... Rfd8 {[%emt 0:11:32]} 14. Rfd1 {[%emt 0:01:46]} Bf8 {[%emt 0:06:28]} 15. f3 {[%emt 0:04:32]} Nh5 {[%emt 0:03:09][%cal Bf6h5,Bh5g7,Bg7e6,Be6g5][%mdl 32]} 16. g3 {[%emt 0:11:53]} Ng7 {[%emt 0:02:24]} 17. Qf2 {[%emt 0:05:28]} a6 {[%emt 0:02:27]} 18. Na4 {[%emt 0:00:06]} Ne6 {[%emt 0:00:23]} 19. Nb6 {[%emt 0:00:26]} Nxb6 {[%emt 0:00:15]} 20. Bxb6 {[%emt 0:00:11]} Rxd1+ {[%emt 0:05:41]} 21. Rxd1 {[%emt 0:00:07]} Ng5 {[%emt 0:00:27]} 22. Qe2 {[%emt 0:02:27]} Qf6 {[%emt 0:05:08]} 23. Kg2 {[%emt 0:01:02]} h5 {[%emt 0:01:35][%cal Bh7h5,Bh5h4][%mdl 32]} 24. Nd2 {[%emt 0:11:04]} h4 {[%emt 0:04:30]} 25. Nc4 {[%emt 0:00:32]} Qe6 {[%emt 0:03:42]} 26. Be3 {[%emt 0:02:56] Active counter play!} Be7 {[%emt 0:12:24]} 27. g4 {[%emt 0:00:06]} Qf6 {[%emt 0:05:49]} 28. Bxg5 {[%emt 0:06:24]} (28. Nb6 {looks sharper.} Rd8 29. Rxd8+ Bxd8 30. Nd7) 28... Qxg5 {[%emt 0:00:02]} (28... h3+ 29. Kxh3 Qxg5 30. Kg2 $16) 29. Qe3 {[%emt 0:00:19]} Qf6 {[%emt 0:00:48]} 30. Qc3 {[%emt 0:01:26]} (30. Rd7 {with more complications.} Rd8 31. Rxb7 h3+ 32. Kxh3 Bc5 33. Qe2) 30... Rd8 {[%emt 0:14:37]} ({Resist} 30... h3+ 31. Kxh3 Bb4 32. Qb3 $16) 31. Rxd8+ Bxd8 $11 {[%emt 0:00:01][%mdl 4096] Endgame KQB-KQN} 32. Qd3 {[%emt 0:01:41]} Be7 {[%emt 0:02:44]} 33. Qe3 {[%emt 0:04:43]} Kh7 {[%emt 0:04:51]} 34. b3 {[%emt 0:00:22]} Bf8 {[%emt 0:00:32][%cal Be7f8,Bf8g7,Bg7h6,Bh6f4][%mdl 32]} 35. Qc3 {[%emt 0:02:27]} (35. g5 $5 {[%cal Rg5f6]} Qe6 36. Qe1 $14) 35... Bg7 {[%emt 0:01:35]} 36. Qd2 {[%emt 0:00:35]} Bh6 $1 {[%emt 0:01:30] Prevents g5.} 37. Qc3 {[%emt 0:03:59]} Bf4 {[%emt 0:00:44][%cal Oh4h3]} 38. h3 {[%emt 0:01:40]} Qe7 {[%emt 0:01:41]} 39. Nb2 {[%emt 0:01:55]} Qa3 {[%emt 0:01:35]} 40. Nd3 {[%emt 0:00:00]} Bg3 {[%emt 0:00:00]} 41. Nxe5 {[%emt 0:08:41]} Bxe5 {[%emt 0:04:56]} 42. Qxe5 {[%emt 0:00:05] KQ-KQ} Qc1 {[%emt 0:00:16] Inhibits Qg5.} 43. Qc5 {[%emt 0:03:15]} Kg8 {[%emt 0:02:18]} 44. Qf2 {[%emt 0:03:02]} g5 {[%emt 0:00:27]} 45. f4 {[%emt 0:04:06]} gxf4 {[%emt 0:00:14]} 46. Qxh4 {[%emt 0:00:05]} Qxc2+ {[%emt 0:00:37]} 47. Kf3 {[%emt 0:00:05]} Qd3+ {[%emt 0:06:10]} 48. Kxf4 {[%emt 0:00:10]} Qd2+ {[%emt 0:00:04]} 49. Kf5 {[%emt 0:04:34]} Qxa5+ {[%emt 0:00:22]} 50. e5 {[%emt 0:00:05]} Qd5 {[%emt 0:02:01] ...Qf3+ is the strong threat.} 51. Qg5+ {[%emt 0:02:46]} Kf8 {[%emt 0:00:11]} 52. Qh6+ {[%emt 0:00:10]} Ke8 $2 {[%emt 0:02:10] [#]} (52... Kg8 $1 $11) 53. Qh8+ $2 {[%emt 0:02:12]} ({Only move:} 53. Kf6 $1 $18) 53... Kd7 {[%emt 0:01:45]} 54. h4 {[%emt 0:00:14][%cal Bh3h4,Bh4h5,Bh5h6,Bh6h7][%mdl 32]} Qxb3 {[%emt 0:01:58]} 55. h5 {[%emt 0:00:15]} c5 {[%emt 0:10:19]} 56. h6 {[%emt 0:01:20]} c4 {[%emt 0:03:49] Hoping for ...c3.} 57. h7 {[%emt 0:01:31][%cal Oe5e6] aiming for e6+!} Qf3+ {[%emt 0:02:18]} 58. Kg5 {[%emt 0:00:06][%cal Oe5e6] Threatening mate with e6+!} c3 $2 {[%emt 0:00:20][%mdl 8192] [#]} (58... Qe3+ $11 59. Kh5 Qh3+ 60. Kg5 Qe3+ 61. Kh5 Qh3+ 62. Kg5 Qe3+) 59. e6+ $1 {[%emt 0:06:50]} Ke7 {[%emt 0:00:04]} 60. Qd4 {[%emt 0:01:23] Weighted Error Value: White=0.11 (very precise) /Black=0.27 (precise)} 1-0

[Event "VII Totalizator Sportowy 2022"]
[Site "Bydgoszcz"]
[Date "2022.07.01"]
[Round "7.2"]
[White "Jakubowski, Krzysztof"]
[Black "Czarnota, Pawel"]
[Result "1/2-1/2"]
[ECO "C48"]
[WhiteElo "2475"]
[BlackElo "2502"]
[Annotator "TA"]
[PlyCount "26"]
[EventDate "2022.06.25"]
[EventType "swiss"]
[EventCountry "POL"]
[SourceTitle "playchess.com"]
[Source "ChessBase"]
[SourceQuality "1"]
[TimeControl "40/5400+30:1800+30"]

{[%evp 21,26,0,0,-5,0,-10,0]} 1. e4 {[%emt 0:00:03]} e5 {[%emt 0:00:09]} 2. Nf3 {[%emt 0:00:08]} Nc6 {[%emt 0:00:06]} 3. Nc3 {[%emt 0:00:14]} Nf6 {[%emt 0:00:17]} 4. Bb5 {[%emt 0:00:22]} Nd4 {[%emt 0:00:42]} 5. Nxd4 {[%emt 0:00:18]} exd4 {[%emt 0:00:09]} 6. e5 {[%emt 0:00:12]} dxc3 {[%emt 0:00:36]} 7. exf6 {[%emt 0:00:13]} Qxf6 {[%emt 0:00:12]} 8. dxc3 {[%emt 0:00:34]} Qe5+ {[%emt 0:01:33]} 9. Qe2 {[%emt 0:02:11]} Qxe2+ {[%emt 0:01:04]} 10. Kxe2 {[%emt 0:00:19]} c6 {[%emt 0:01:45]} 11. Bd3 {[%emt 0:00:24]} d5 {[%emt 0:00:36] The position is equal.} 12. Bf4 {[%emt 0:00:41] has lost popularity (12.Re1). C48: Four Knights: 4 Bb5, replies other than 4...Bb4.} Be6 {[%emt 0:01:05] [#]} 13. a4 $146 {[%emt 0:01:33]} ({Predecessor:} 13. Rhe1 Kd7 14. Rad1 Bd6 {½-½ (14) Istratescu,A (2651)-Fressinet,L (2693) Haguenau 2013}) 13... a5 {[%emt 0:01:31] An uneventful encounter.} 1/2-1/2

[Event "VII Totalizator Sportowy 2022"]
[Site "Bydgoszcz"]
[Date "2022.07.01"]
[Round "7.3"]
[White "Heberla, Bartlomiej"]
[Black "Gumularz, Szymon"]
[Result "1/2-1/2"]
[ECO "E06"]
[WhiteElo "2576"]
[BlackElo "2513"]
[Annotator "TA"]
[PlyCount "35"]
[EventDate "2022.06.25"]
[EventType "swiss"]
[EventCountry "POL"]
[SourceTitle "playchess.com"]
[Source "ChessBase"]
[SourceQuality "1"]
[TimeControl "40/5400+30:1800+30"]

{[%evp 20,35,0,0,0,0,0,-7,0,0,0,-6,8,6,23,13,9,-11]} 1. d4 {[%emt 0:06:20]} Nf6 {[%emt 0:00:05]} 2. c4 {[%emt 0:00:20]} e6 {[%emt 0:00:04]} 3. g3 {[%emt 0:00:05]} d5 {[%emt 0:03:50]} 4. Bg2 {[%emt 0:00:08]} Be7 {[%emt 0:00:51]} 5. Nf3 {[%emt 0:00:10]} O-O {[%emt 0:00:04]} 6. O-O {[%emt 0:00:09]} dxc4 {[%emt 0:00:25]} 7. Qc2 {[%emt 0:00:08]} a6 {[%emt 0:00:38]} 8. Qxc4 {[%emt 0:00:15]} b5 {[%emt 0:00:44]} 9. Qc2 {[%emt 0:00:03]} Bb7 {[%emt 0:00:10][%cal Bc8b7,Bb7e4,Be4g6][%mdl 32]} 10. Bd2 {[%emt 0:00:06]} Be4 {[%emt 0:03:46]} 11. Qc1 {[%emt 0:00:04]} c6 {[%emt 0:00:10] E05: Open Catalan: 5 Nf3 Be7.} 12. Rd1 {[%emt 0:13:40]} Nbd7 {[%emt 0:03:50]} 13. Nc3 {[%emt 0:03:37]} Bg6 {[%emt 0:00:22]} 14. Bg5 {[%emt 0:03:44]} Rc8 {[%emt 0:34:31]} 15. Bxf6 {[%emt 0:13:26] [#]} Nxf6 $146 {[%emt 0:04:33]} ({Predecessor:} 15... Bxf6 16. Ne5 {½-½ (16) Brunello,S (2562)-Ly,M (2480) Amsterdam 2016}) 16. Ne5 {[%emt 0:01:49]} Qb6 {[%emt 0:00:41]} 17. Qe3 {[%emt 0:08:48]} Rfe8 {[%emt 0:08:59]} 18. Nxg6 {[%emt 0:11:04] A rather calm draw.  Weighted Error Value: White=0.03 (flawless) /Black=0.02 (flawless)} 1/2-1/2

[Event "VII Totalizator Sportowy 2022"]
[Site "Bydgoszcz"]
[Date "2022.07.01"]
[Round "7.4"]
[White "Jarmula, Lukasz"]
[Black "Tomczak, Jacek"]
[Result "0-1"]
[ECO "A45"]
[WhiteElo "2459"]
[BlackElo "2584"]
[Annotator "TA"]
[PlyCount "80"]
[EventDate "2022.06.25"]
[EventType "swiss"]
[EventCountry "POL"]
[SourceTitle "playchess.com"]
[Source "ChessBase"]
[SourceQuality "1"]
[TimeControl "40/5400+30:1800+30"]

{[%evp 9,80,2,17,12,13,7,9,4,11,29,51,31,57,24,23,0,14,0,32,53,39,-263,-264,-235,-256,-247,-275,-266,-266,-249,-239,-241,-251,-326,-317,-366,-357,-364,-369,-353,-351,-358,-327,-343,-342,-321,-246,-350,-277,-285,-293,-276,-288,-292,-293,-383,-373,-570,-566,-549,-535,-1049,-1041,-29991,-29992,-29992,-29993,-29993,-29994,-29994,-29995,-29996,-29997]} 1. d4 {[%emt 0:00:02]} Nf6 {[%emt 0:00:08]} 2. Bf4 {[%emt 0:00:06]} b6 {[%emt 0:00:18]} 3. e3 {[%emt 0:00:19]} Bb7 {[%emt 0:00:13]} 4. c4 {[%emt 0:00:10]} e6 {[%emt 0:03:49]} 5. Nc3 {[%emt 0:00:12]} Bb4 {[%emt 0:02:17]} 6. Nge2 {[%emt 0:00:08] A45: Trompowsky Attack.} O-O {[%emt 0:02:03]} 7. a3 {[%emt 0:01:55]} Be7 {[%emt 0:02:52] [#]} 8. Qc2 $146 {[%emt 0:03:32] The position is equal.} ({Predecessor:} 8. Ng3 d6 9. Bd3 Nbd7 10. O-O h6 11. e4 e5 12. Be3 exd4 13. Bxd4 Re8 14. Nf5 {1-0 (20) Filipets,E (2353)-Stoleriu,G (2419) Chess.com INT 2022}) 8... a6 {[%emt 0:18:53]} 9. Rd1 {[%emt 0:06:45]} d6 {[%emt 0:05:07]} 10. e4 {[%emt 0:03:30]} b5 {[%emt 0:19:20]} 11. cxb5 {[%emt 0:05:18]} axb5 {[%emt 0:00:23]} 12. Ng3 {[%emt 0:00:24]} b4 {[%emt 0:06:14]} 13. axb4 {[%emt 0:00:39][%cal Ba3b4,Bb4b5][%mdl 32]} Nc6 {[%emt 0:00:46][%cal Bb8c6,Bc6b4,Bb4c2][%mdl 32]} 14. b5 {[%emt 0:01:51]} Nb4 {[%emt 0:01:22]} 15. Qb1 {[%emt 0:01:09][%mdl 8192] [#] White does not recover from this.} (15. Qd2 $14 {stays ahead.}) 15... Ra1 $3 $19 {[%emt 0:00:42][%mdl 576] Deflection, Decoy} 16. Qxa1 {[%emt 0:02:04]} Nc2+ {[%emt 0:00:04]} 17. Kd2 {[%emt 0:00:11]} Nxa1 {[%emt 0:00:13]} 18. Rxa1 {[%emt 0:00:05]} Ng4 {[%emt 0:04:50]} 19. Be2 {[%emt 0:04:05]} Bg5 {[%emt 0:04:54]} 20. Bxg4 {[%emt 0:02:24] [#] Strongly threatening Be3.} Bxf4+ {[%emt 0:00:04]} 21. Ke2 {[%emt 0:00:17]} f5 {[%emt 0:00:35]} 22. Bf3 {[%emt 0:02:54]} Qf6 {[%emt 0:03:30]} 23. exf5 {[%emt 0:11:12]} Bxf3+ {[%emt 0:00:45]} (23... exf5 $2 24. Bxb7 Qxd4 25. Rhd1 Qc4+ 26. Ke1 $18) 24. gxf3 {[%emt 0:00:12]} Qxd4 {[%emt 0:02:08] ...Qd2+ is the strong threat.} 25. Kf1 {[%emt 0:00:45]} Qb4 {[%emt 0:08:57] Chess con chili.} ({Avoid the trap} 25... exf5 $2 26. Kg2 $19) 26. Rb1 {[%emt 0:07:28]} exf5 {[%emt 0:05:58]} 27. Kg2 {[%emt 0:02:29]} Bd2 {[%emt 0:01:05]} 28. Nd5 {[%emt 0:07:36]} (28. Rhd1 $142 Bxc3 29. bxc3) 28... Qc5 {[%emt 0:00:10]} 29. Ne7+ {[%emt 0:01:05]} Kh8 {[%emt 0:00:04]} 30. Rhd1 {[%emt 0:01:03]} Qc2 {[%emt 0:00:54]} 31. Nd5 {[%emt 0:02:47]} h5 {[%emt 0:01:54]} 32. Ne2 {[%emt 0:09:35]} f4 {[%emt 0:00:45] aiming for ...Qg6+.} 33. Nd4 {[%emt 0:08:41]} (33. b6 {was necessary.} cxb6 34. Ne7) 33... Qg6+ {[%emt 0:00:38]} 34. Kh1 {[%emt 0:02:34]} Qd3 {[%emt 0:00:38]} 35. Nc3 {[%emt 0:06:32]} Re8 {[%emt 0:01:22]} 36. Nb3 {[%emt 0:06:47]} Qxf3+ {[%emt 0:00:06] Black mates.} 37. Kg1 {[%emt 0:00:06]} Bxc3 {[%emt 0:00:16]} 38. bxc3 {[%emt 0:00:07]} Re2 {[%emt 0:00:06]} 39. Rf1 {[%emt 0:00:14]} Re5 {[%emt 0:00:17][%cal Re5g5]} 40. Rfd1 {[%emt 0:00:00]} Qg4+ {[%emt 0:00:00] Weighted Error Value: White=0.65/Black=0.09 (flawless)} 0-1